fUSD/lending_fUSD_20260513
["ID","MTS","AMOUNT","RATE_DAILY","PERIOD"]
[422160645,1778639450000,-1000.0,0.00036048,2]
[422160646,1778639450000,-1000.0,0.00036048,2]
[422160652,1778639450000,-1574.93,0.00036362,60]
[422160653,1778639450000,-208.96,0.000364,120]
[422160654,1778639450000,-40216.0,0.00036469,60]
[422160655,1778639450000,-154.0,0.00036622,30]
[422160658,1778639450000,-168.0,0.00036636,30]
[422160657,1778639450000,-151.0,0.00036622,30]
[422160630,1778639450000,-287.0,0.00035622,30]
[422160642,1778639450000,-40216.0,0.00035897,60]
[422160628,1778639450000,-217.0,0.00035616,30]
[422160625,1778639450000,-500.0,0.00035616,7]
[422160626,1778639450000,-226.12256614,0.00035616,2]
[422160656,1778639450000,-287.0,0.00036622,30]
[422160612,1778639450000,-500.0,0.00035616,7]
[422160604,1778639450000,-159.0818048,0.00035253,120]
[422160605,1778639450000,-40045.0,0.00035287,60]
[422160608,1778639450000,-11377.62,0.00035588,30]
[422160609,1778639450000,-1000.0,0.00035616,120]
[422160607,1778639450000,-2283.94,0.000354,14]
[422160606,1778639450000,-43142.0,0.00035306,60]
[422160611,1778639450000,-500.0,0.00035616,7]
[422160610,1778639450000,-500.0,0.00035616,7]
[422160613,1778639450000,-500.0,0.00035616,7]
[422160616,1778639450000,-500.0,0.00035616,7]
[422160617,1778639450000,-500.0,0.00035616,7]
[422160620,1778639450000,-500.0,0.00035616,7]
[422160614,1778639450000,-500.0,0.00035616,7]
[422160618,1778639450000,-619.51399893,0.00035616,7]
[422160624,1778639450000,-500.0,0.00035616,7]
[422160622,1778639450000,-500.0,0.00035616,7]
[422160615,1778639450000,-500.0,0.00035616,7]
[422160619,1778639450000,-500.0,0.00035616,7]
[422160621,1778639450000,-500.0,0.00035616,7]
[422160623,1778639450000,-500.0,0.00035616,7]
[422160627,1778639450000,-186.38,0.00035616,2]
[422160636,1778639450000,-40216.0,0.00035707,60]
[422160635,1778639450000,-209.0,0.00035659,120]
[422160629,1778639450000,-154.0,0.00035622,30]
[422160659,1778639450000,-1062.0,0.00036636,30]
[422160660,1778639450000,-157.0,0.00036636,30]
[422160661,1778639450000,-40216.0,0.0003666,60]
[422160692,1778639450000,-300.0,0.00037308,2]
[422160691,1778639450000,-604.21547136,0.00037308,2]
[422160693,1778639450000,-300.0,0.00037308,2]
[422160694,1778639450000,-527.54022817,0.00037308,2]
[422160698,1778639450000,-300.0,0.00037308,2]
[422160697,1778639450000,-893.04482543,0.00037308,2]
[422160696,1778639450000,-1066.50381929,0.00037308,2]
[422160695,1778639450000,-300.0,0.00037308,2]
[422160699,1778639450000,-300.0,0.00037308,2]
[422160701,1778639450000,-300.0,0.00037308,2]
[422160704,1778639450000,-300.0,0.00037308,2]
[422160700,1778639450000,-301.67321972,0.00037308,2]
[422160705,1778639450000,-300.0,0.00037308,2]
[422160702,1778639450000,-300.45062341,0.00037308,2]
[422160706,1778639450000,-300.0,0.00037308,2]
[422160707,1778639450000,-300.0,0.00037308,2]
[422160709,1778639450000,-300.0,0.00037308,2]
[422160708,1778639450000,-853.86030012,0.00037308,2]
[422160714,1778639450000,-300.0,0.00037308,2]
[422160715,1778639450000,-1146.71946024,0.00037308,2]
[422160713,1778639450000,-526.68525168,0.00037308,2]
[422160711,1778639450000,-300.0,0.00037308,2]
[422160712,1778639450000,-343.84381003,0.00037308,2]
[422160710,1778639450000,-1911.66155628,0.00037308,2]
[422160716,1778639450000,-309.46605895,0.00037308,2]
[422160689,1778639450000,-300.0,0.00037308,2]
[422160690,1778639450000,-300.0,0.00037308,2]
[422160703,1778639450000,-300.0,0.00037308,2]
[422160686,1778639450000,-492.49408754,0.00037308,2]
[422160681,1778639450000,-300.0,0.00037308,2]
[422160662,1778639450000,-157.57,0.0003669,30]
[422160663,1778639450000,-152.0,0.0003671,30]
[422160664,1778639450000,-350.0,0.00036849,5]
[422160665,1778639450000,-40216.0,0.00036851,60]
[422160673,1778639450000,-178.45921432,0.000372,120]
[422160672,1778639450000,-190.0038,0.00037149,2]
[422160674,1778639450000,-40216.0,0.00037232,60]
[422160675,1778639450000,-300.0,0.00037308,2]
[422160666,1778639450000,-2283.94,0.000369,14]
[422160668,1778639450000,-7646.16,0.00037,120]
[422160669,1778639450000,-160.0,0.00037,120]
[422160671,1778639450000,-2111.1538,0.00037149,2]
[422160676,1778639450000,-300.0,0.00037308,2]
[422160667,1778639450000,-1000.0,0.00036986,120]
[422160687,1778639450000,-364.41022781,0.00037308,2]
[422160685,1778639450000,-300.0,0.00037308,2]
[422160683,1778639450000,-300.0,0.00037308,2]
[422160684,1778639450000,-300.0,0.00037308,2]
[422160680,1778639450000,-300.0,0.00037308,2]
[422160682,1778639450000,-300.0,0.00037308,2]
[422160677,1778639450000,-300.0,0.00037308,2]
[422160688,1778639450000,-300.0,0.00037308,2]
[422160678,1778639450000,-300.0,0.00037308,2]
[422160670,1778639450000,-40216.0,0.00037041,60]
[422160679,1778639450000,-300.0,0.00037308,2]
[422160764,1778639451000,-300.0,0.00037308,2]
[422160753,1778639451000,-527.54022817,0.00037308,2]
[422160765,1778639451000,-300.0,0.00037308,2]
[422160759,1778639451000,-301.67321972,0.00037308,2]
[422160757,1778639451000,-590.52830037,0.00037308,2]
[422160756,1778639451000,-893.04482543,0.00037308,2]
[422160749,1778639451000,-604.21547136,0.00037308,2]
[422160754,1778639451000,-300.0,0.00037308,2]
[422160750,1778639451000,-300.0,0.00037308,2]
[422160748,1778639451000,-300.0,0.00037308,2]
[422160741,1778639451000,-300.0,0.00037308,2]
[422160758,1778639451000,-300.0,0.00037308,2]
[422160755,1778639451000,-1066.50381929,0.00037308,2]
[422160760,1778639451000,-300.0,0.00037308,2]
[422160767,1778639451000,-300.0,0.00037308,2]
[422160762,1778639451000,-300.0,0.00037308,2]
[422160763,1778639451000,-300.0,0.00037308,2]
[422160766,1778639451000,-853.86030012,0.00037308,2]
[422160769,1778639451000,-300.0,0.00037308,2]
[422160775,1778639451000,-300.00000001,0.00037308,2]
[422160768,1778639451000,-1911.66155628,0.00037308,2]
[422160771,1778639451000,-526.68525168,0.00037308,2]
[422160772,1778639451000,-1146.71946024,0.00037308,2]
[422160774,1778639451000,-864.10865204,0.00037308,2]
[422160770,1778639451000,-343.84381003,0.00037308,2]
[422160776,1778639451000,-329.45075992,0.00037308,2]
[422160778,1778639451000,-310.57459591,0.00037308,2]
[422160752,1778639451000,-300.0,0.00037308,2]
[422160761,1778639451000,-300.45062341,0.00037308,2]
[422160751,1778639451000,-300.0,0.00037308,2]
[422160717,1778639451000,-864.10865205,0.00037308,2]
[422160744,1778639451000,-300.00000001,0.00037308,2]
[422160718,1778639451000,-300.0,0.00037308,2]
[422160719,1778639451000,-300.0,0.00037308,2]
[422160779,1778639451000,-300.0,0.00037308,2]
[422160720,1778639451000,-300.0,0.00037308,2]
[422160725,1778639451000,-576.93890108,0.00037308,2]
[422160721,1778639451000,-300.0,0.00037308,2]
[422160722,1778639451000,-300.0,0.00037308,2]
[422160726,1778639451000,-451.72868137,0.00037308,2]
[422160723,1778639451000,-463.6616139,0.00037308,2]
[422160724,1778639451000,-300.0,0.00037308,2]
[422160738,1778639451000,-300.0,0.00037308,2]
[422160728,1778639451000,-300.0,0.00037308,2]
[422160733,1778639451000,-300.0,0.00037308,2]
[422160747,1778639451000,-492.49408754,0.00037308,2]
[422160732,1778639451000,-300.0,0.00037308,2]
[422160730,1778639451000,-483.88780455,0.00037308,2]
[422160731,1778639451000,-309.70196001,0.00037308,2]
[422160727,1778639451000,-300.0,0.00037308,2]
[422160739,1778639451000,-399.64911484,0.00037308,2]
[422160737,1778639451000,-300.0,0.00037308,2]
[422160736,1778639451000,-300.0,0.00037308,2]
[422160734,1778639451000,-1094.29459014,0.00037308,2]
[422160735,1778639451000,-300.0,0.00037308,2]
[422160740,1778639451000,-300.0,0.00037308,2]
[422160745,1778639451000,-300.0,0.00037308,2]
[422160742,1778639451000,-300.0,0.00037308,2]
[422160743,1778639451000,-300.00807637,0.00037308,2]
[422160746,1778639451000,-300.0,0.00037308,2]
[422160729,1778639451000,-300.0,0.00037308,2]
[422160777,1778639451000,-300.0,0.00037308,2]
[422160773,1778639451000,-309.46605895,0.00037308,2]
[422160791,1778639451000,-300.06806865,0.00037308,2]
[422160812,1778639451000,-1911.66155627,0.00037308,2]
[422160818,1778639451000,-300.0,0.00037308,2]
[422160814,1778639451000,-526.68525168,0.00037308,2]
[422160817,1778639451000,-451.72868137,0.00037308,2]
[422160813,1778639451000,-343.84381003,0.00037308,2]
[422160816,1778639451000,-300.0,0.00037308,2]
[422160815,1778639451000,-309.46605894,0.00037308,2]
[422160821,1778639451000,-483.88780456,0.00037308,2]
[422160822,1778639451000,-309.70196001,0.00037308,2]
[422160832,1778639451000,-725.78568352,0.00037308,2]
[422160825,1778639451000,-300.0,0.00037308,2]
[422160824,1778639451000,-300.0,0.00037308,2]
[422160823,1778639451000,-300.0,0.00037308,2]
[422160828,1778639451000,-300.0,0.00037308,2]
[422160830,1778639451000,-527.54022817,0.00037308,2]
[422160827,1778639451000,-492.49408753,0.00037308,2]
[422160826,1778639451000,-300.0,0.00037308,2]
[422160831,1778639451000,-1066.50381928,0.00037308,2]
[422160829,1778639451000,-300.0,0.00037308,2]
[422160834,1778639451000,-301.67321972,0.00037308,2]
[422160835,1778639451000,-300.0,0.00037308,2]
[422160833,1778639451000,-300.0,0.00037308,2]
[422160837,1778639451000,-300.0,0.00037308,2]
[422160839,1778639451000,-300.0,0.00037308,2]
[422160840,1778639451000,-300.0,0.00037308,2]
[422160842,1778639451000,-527.54022817,0.00037308,2]
[422160836,1778639451000,-300.0,0.00037308,2]
[422160781,1778639451000,-451.72868137,0.00037308,2]
[422160841,1778639451000,-491.19814231,0.00037308,2]
[422160811,1778639451000,-599.95681692,0.00037308,2]
[422160810,1778639451000,-853.86030011,0.00037308,2]
[422160838,1778639451000,-300.00000001,0.00037308,2]
[422160819,1778639451000,-509.69657681,0.00037308,2]
[422160808,1778639451000,-300.0,0.00037308,2]
[422160792,1778639451000,-300.0,0.00037308,2]
[422160783,1778639451000,-300.0,0.00037308,2]
[422160793,1778639451000,-492.49408754,0.00037308,2]
[422160780,1778639451000,-300.0,0.00037308,2]
[422160788,1778639451000,-300.0,0.00037308,2]
[422160786,1778639451000,-309.70196001,0.00037308,2]
[422160784,1778639451000,-300.0,0.00037308,2]
[422160787,1778639451000,-300.0,0.00037308,2]
[422160790,1778639451000,-300.0,0.00037308,2]
[422160789,1778639451000,-300.0,0.00037308,2]
[422160785,1778639451000,-483.88780455,0.00037308,2]
[422160794,1778639451000,-300.0,0.00037308,2]
[422160797,1778639451000,-300.0,0.00037308,2]
[422160782,1778639451000,-300.0,0.00037308,2]
[422160796,1778639451000,-300.0,0.00037308,2]
[422160795,1778639451000,-604.21547136,0.00037308,2]
[422160820,1778639451000,-300.0,0.00037308,2]
[422160809,1778639451000,-300.0,0.00037308,2]
[422160804,1778639451000,-301.67321972,0.00037308,2]
[422160802,1778639451000,-725.78568352,0.00037308,2]
[422160803,1778639451000,-300.0,0.00037308,2]
[422160800,1778639451000,-1066.50381929,0.00037308,2]
[422160799,1778639451000,-527.54022817,0.00037308,2]
[422160805,1778639451000,-300.0,0.00037308,2]
[422160807,1778639451000,-379.25258747,0.00037308,2]
[422160798,1778639451000,-300.0,0.00037308,2]
[422160806,1778639451000,-300.45062341,0.00037308,2]
[422160801,1778639451000,-893.04482544,0.00037308,2]
[422160882,1778639452000,-200.0,0.00038007,6]
[422160886,1778639452000,-2283.94,0.000381,14]
[422160885,1778639452000,-275.32714793,0.000381,33]
[422160883,1778639452000,-2111.1538,0.00038077,2]
[422160877,1778639452000,-355.0,0.00038,120]
[422160881,1778639452000,-203.2523277,0.00038,2]
[422160875,1778639452000,-40216.0,0.00037995,60]
[422160878,1778639452000,-160.0,0.00038,120]
[422160876,1778639452000,-12709.41223563,0.00038,2]
[422160884,1778639452000,-295.4646563,0.000381,33]
[422160873,1778639452000,-200.0,0.00037973,6]
[422160879,1778639452000,-10000.0,0.00038,39]
[422160891,1778639452000,-1400.31,0.00038199,2]
[422160896,1778639452000,-1400.31,0.00038199,30]
[422160888,1778639452000,-1400.31,0.00038199,2]
[422160892,1778639452000,-1400.31,0.00038199,7]
[422160889,1778639452000,-1400.31,0.00038199,7]
[422160890,1778639452000,-1400.31,0.00038199,30]
[422160895,1778639452000,-1400.31,0.00038199,7]
[422160893,1778639452000,-1400.31,0.00038199,30]
[422160897,1778639452000,-1400.31,0.00038199,2]
[422160894,1778639452000,-1400.31,0.00038199,2]
[422160899,1778639452000,-1400.31,0.00038199,30]
[422160904,1778639452000,-1400.31,0.00038199,7]
[422160898,1778639452000,-1400.31,0.00038199,7]
[422160880,1778639452000,-300.0,0.00038,120]
[422160902,1778639452000,-1400.31,0.00038199,30]
[422160887,1778639452000,-40216.0,0.00038185,60]
[422160874,1778639452000,-157.72297697,0.00037984,2]
[422160857,1778639452000,-300.0,0.00037308,2]
[422160871,1778639452000,-200.0,0.00037971,6]
[422160900,1778639452000,-1400.31,0.00038199,2]
[422160843,1778639452000,-725.78568352,0.00037308,2]
[422160844,1778639452000,-300.0,0.00037308,2]
[422160846,1778639452000,-725.78568352,0.00037308,2]
[422160848,1778639452000,-300.0,0.00037308,2]
[422160849,1778639452000,-727.92641506,0.00037308,2]
[422160847,1778639452000,-300.0,0.00037308,2]
[422160851,1778639452000,-1099.36034275,0.00037308,2]
[422160853,1778639452000,-1772.24581705,0.00037308,2]
[422160855,1778639452000,-300.15194547,0.00037308,2]
[422160850,1778639452000,-348.36222459,0.00037308,2]
[422160852,1778639452000,-1151.21739019,0.00037308,2]
[422160845,1778639452000,-300.0,0.00037308,2]
[422160872,1778639452000,-200.0,0.00037971,6]
[422160854,1778639452000,-300.51069385,0.00037308,2]
[422160868,1778639452000,-40216.0,0.00037804,60]
[422160858,1778639452000,-2111.1538,0.00037381,2]
[422160869,1778639452000,-350.0,0.00037808,5]
[422160867,1778639452000,-1444.0,0.00037753,120]
[422160859,1778639452000,-3541.0,0.00037408,2]
[422160862,1778639452000,-40216.0,0.00037613,60]
[422160861,1778639452000,-11377.62,0.00037536,30]
[422160860,1778639452000,-40216.0,0.00037423,60]
[422160865,1778639452000,-1000.0,0.00037615,2]
[422160863,1778639452000,-2111.1538,0.00037613,2]
[422160864,1778639452000,-1000.0,0.00037615,2]
[422160866,1778639452000,-1555.956,0.0003763,49]
[422160870,1778639452000,-2111.1538,0.00037845,2]
[422160856,1778639452000,-300.63750532,0.00037308,2]
[422160901,1778639452000,-1400.31,0.00038199,7]
[422160962,1778639452000,-407.19620485,0.00038356,2]
[422160906,1778639452000,-1400.31,0.00038199,2]
[422160935,1778639452000,-500.0,0.00038356,2]
[422160934,1778639452000,-1000.0,0.00038356,7]
[422160940,1778639452000,-500.0,0.00038356,2]
[422160944,1778639452000,-458.37215967,0.00038356,2]
[422160942,1778639452000,-500.0,0.00038356,2]
[422160943,1778639452000,-500.0,0.00038356,2]
[422160951,1778639452000,-500.0,0.00038356,2]
[422160941,1778639452000,-500.0,0.00038356,2]
[422160945,1778639452000,-500.0,0.00038356,2]
[422160952,1778639452000,-500.0,0.00038356,2]
[422160947,1778639452000,-500.0,0.00038356,2]
[422160948,1778639452000,-500.0,0.00038356,2]
[422160953,1778639452000,-500.0,0.00038356,2]
[422160949,1778639452000,-500.0,0.00038356,2]
[422160946,1778639452000,-500.0,0.00038356,2]
[422160950,1778639452000,-500.0,0.00038356,2]
[422160955,1778639452000,-500.0,0.00038356,2]
[422160957,1778639452000,-415.69729798,0.00038356,2]
[422160956,1778639452000,-500.0,0.00038356,2]
[422160965,1778639452000,-500.0,0.00038356,2]
[422160959,1778639452000,-500.0,0.00038356,2]
[422160961,1778639452000,-500.0,0.00038356,2]
[422160954,1778639452000,-500.0,0.00038356,2]
[422160964,1778639452000,-500.0,0.00038356,2]
[422160958,1778639452000,-500.0,0.00038356,2]
[422160960,1778639452000,-500.0,0.00038356,2]
[422160903,1778639452000,-1400.31,0.00038199,2]
[422160931,1778639452000,-2111.1538,0.00038309,2]
[422160933,1778639452000,-174.18846205,0.0003835,120]
[422160963,1778639452000,-500.0,0.00038356,2]
[422160936,1778639452000,-500.0,0.00038356,2]
[422160932,1778639452000,-175.88953785,0.00038329,120]
[422160913,1778639452000,-703.29,0.00038199,30]
[422160909,1778639452000,-703.29,0.00038199,7]
[422160914,1778639452000,-703.29,0.00038199,2]
[422160905,1778639452000,-1400.31,0.00038199,30]
[422160910,1778639452000,-703.29,0.00038199,30]
[422160908,1778639452000,-703.29,0.00038199,2]
[422160907,1778639452000,-1400.48,0.00038199,7]
[422160912,1778639452000,-703.29,0.00038199,7]
[422160915,1778639452000,-703.29,0.00038199,7]
[422160916,1778639452000,-703.29,0.00038199,30]
[422160921,1778639452000,-703.29,0.00038199,7]
[422160917,1778639452000,-703.29,0.00038199,2]
[422160918,1778639452000,-703.29,0.00038199,7]
[422160911,1778639452000,-703.29,0.00038199,2]
[422160919,1778639452000,-703.29,0.00038199,30]
[422160920,1778639452000,-703.29,0.00038199,2]
[422160928,1778639452000,-157.57,0.0003822,60]
[422160929,1778639452000,-157.72297697,0.00038258,2]
[422160926,1778639452000,-703.29,0.00038199,2]
[422160937,1778639452000,-500.0,0.00038356,2]
[422160939,1778639452000,-500.0,0.00038356,2]
[422160930,1778639452000,-46119.0,0.0003828,60]
[422160927,1778639452000,-703.45,0.00038199,7]
[422160925,1778639452000,-703.29,0.00038199,30]
[422160924,1778639452000,-703.29,0.00038199,7]
[422160923,1778639452000,-703.29,0.00038199,2]
[422160922,1778639452000,-703.29,0.00038199,30]
[422160938,1778639452000,-500.0,0.00038356,2]
[422161003,1778639453000,-385.59,0.00038356,120]
[422161005,1778639453000,-508.0,0.00038422,2]
[422161006,1778639453000,-770.41841605,0.00038425,120]
[422161001,1778639453000,-331.884334,0.00038356,90]
[422161008,1778639453000,-929.64,0.00038498,2]
[422161007,1778639453000,-929.64,0.00038498,2]
[422161004,1778639453000,-40216.0,0.00038376,120]
[422161000,1778639453000,-500.0,0.00038356,90]
[422160999,1778639453000,-500.0,0.00038356,90]
[422161002,1778639453000,-655.86,0.00038356,120]
[422160997,1778639453000,-500.0,0.00038356,90]
[422161009,1778639453000,-929.64,0.000385,2]
[422161010,1778639453000,-929.64,0.000385,2]
[422161013,1778639453000,-345.90912459,0.000385,2]
[422161023,1778639453000,-384.85,0.00038605,120]
[422161012,1778639453000,-49633.30527496,0.000385,2]
[422161011,1778639453000,-929.64,0.000385,2]
[422161022,1778639453000,-16779.8314,0.00038593,30]
[422161018,1778639453000,-184.09,0.00038525,30]
[422161019,1778639453000,-157.72297697,0.00038532,2]
[422161014,1778639453000,-929.67,0.00038502,2]
[422161016,1778639453000,-929.64,0.00038502,2]
[422161017,1778639453000,-384.85,0.00038505,120]
[422161020,1778639453000,-2111.1538,0.00038542,2]
[422161024,1778639453000,-384.85,0.00038705,120]
[422160998,1778639453000,-500.0,0.00038356,90]
[422161026,1778639453000,-2111.1538,0.00038774,2]
[422161021,1778639453000,-40216.0,0.00038566,120]
[422160996,1778639453000,-500.0,0.00038356,90]
[422160981,1778639453000,-500.0,0.00038356,2]
[422160988,1778639453000,-500.0,0.00038356,90]
[422161027,1778639453000,-384.85,0.00038805,120]
[422160966,1778639453000,-500.0,0.00038356,2]
[422160967,1778639453000,-500.0,0.00038356,2]
[422160972,1778639453000,-500.0,0.00038356,2]
[422160968,1778639453000,-500.0,0.00038356,2]
[422160970,1778639453000,-500.0,0.00038356,2]
[422160976,1778639453000,-500.0,0.00038356,2]
[422160977,1778639453000,-500.0,0.00038356,2]
[422160974,1778639453000,-500.0,0.00038356,2]
[422160971,1778639453000,-500.0,0.00038356,2]
[422160979,1778639453000,-500.0,0.00038356,2]
[422160978,1778639453000,-500.0,0.00038356,2]
[422160969,1778639453000,-500.0,0.00038356,2]
[422160987,1778639453000,-500.0,0.00038356,90]
[422160980,1778639453000,-500.0,0.00038356,2]
[422160973,1778639453000,-500.0,0.00038356,2]
[422160983,1778639453000,-1000.0,0.00038356,7]
[422160993,1778639453000,-500.0,0.00038356,90]
[422160982,1778639453000,-387.57612507,0.00038356,2]
[422160994,1778639453000,-500.0,0.00038356,90]
[422160995,1778639453000,-500.0,0.00038356,90]
[422160992,1778639453000,-500.0,0.00038356,90]
[422160984,1778639453000,-1000.0,0.00038356,7]
[422160991,1778639453000,-500.0,0.00038356,90]
[422160986,1778639453000,-280.0,0.00038356,120]
[422160990,1778639453000,-500.0,0.00038356,90]
[422160985,1778639453000,-932.48183126,0.00038356,7]
[422160989,1778639453000,-500.0,0.00038356,90]
[422160975,1778639453000,-500.0,0.00038356,2]
[422161029,1778639453000,-9581.85933216,0.00038834,2]
[422161015,1778639453000,-929.64,0.00038502,2]
[422161028,1778639453000,-157.72297697,0.00038806,2]
[422161062,1778639453000,-1401.68,0.00039267,7]
[422161061,1778639453000,-418.75,0.00039242,2]
[422161063,1778639453000,-704.58,0.00039267,7]
[422161065,1778639453000,-155.74,0.00039277,7]
[422161064,1778639453000,-158.09,0.00039276,7]
[422161060,1778639453000,-1046.85,0.00039242,10]
[422161069,1778639453000,-1401.68,0.00039318,30]
[422161079,1778639453000,-1401.68,0.00039368,2]
[422161080,1778639453000,-704.58,0.00039368,2]
[422161081,1778639453000,-151.4242103,0.00039373,120]
[422161070,1778639453000,-704.58,0.00039318,30]
[422161068,1778639453000,-384.85,0.00039305,120]
[422161075,1778639453000,-158.09,0.00039336,30]
[422161059,1778639453000,-39401.69669405,0.00039241,2]
[422161074,1778639453000,-410.04,0.00039333,30]
[422161073,1778639453000,-408.76,0.00039332,30]
[422161072,1778639453000,-40216.0,0.00039329,120]
[422161077,1778639453000,-157.72297697,0.00039354,2]
[422161076,1778639453000,-155.74,0.00039337,30]
[422161078,1778639453000,-1000.0,0.00039354,10]
[422161082,1778639453000,-171.3357043,0.00039373,120]
[422161084,1778639453000,-164.0556012,0.00039373,120]
[422161085,1778639453000,-159.0818048,0.00039373,120]
[422161086,1778639453000,-408.76,0.00039382,2]
[422161083,1778639453000,-412.9687174,0.00039373,120]
[422161089,1778639453000,-155.74,0.00039397,2]
[422161090,1778639453000,-384.85,0.00039405,120]
[422161025,1778639453000,-40216.0,0.00038757,120]
[422161071,1778639453000,-1584.0,0.00039325,11]
[422161057,1778639453000,-408.76,0.00039233,2]
[422161088,1778639453000,-158.09,0.00039396,2]
[422161066,1778639453000,-408.76,0.00039282,7]
[422161067,1778639453000,-410.04,0.00039283,7]
[422161030,1778639453000,-2000.0,0.000389,7]
[422161033,1778639453000,-31285.05661689,0.00039,2]
[422161036,1778639453000,-3110.99889039,0.00039,14]
[422161038,1778639453000,-10000.0,0.00039,40]
[422161041,1778639453000,-202.0,0.00039,30]
[422161087,1778639453000,-410.04,0.00039383,2]
[422161034,1778639453000,-1329.16559567,0.00039,120]
[422161031,1778639453000,-384.85,0.00038905,120]
[422161035,1778639453000,-1007.29138247,0.00039,2]
[422161039,1778639453000,-154.90323169,0.00039,2]
[422161037,1778639453000,-11066.37,0.00039,30]
[422161040,1778639453000,-1009.7359998,0.00039,5]
[422161043,1778639453000,-2111.1539,0.00039006,2]
[422161032,1778639453000,-40216.0,0.00038948,120]
[422161053,1778639453000,-158.09,0.00039216,2]
[422161054,1778639453000,-1401.68,0.00039217,2]
[422161055,1778639453000,-704.58,0.00039217,2]
[422161056,1778639453000,-155.74,0.00039217,2]
[422161052,1778639453000,-1000.0,0.00039208,10]
[422161050,1778639453000,-384.85,0.00039205,120]
[422161046,1778639453000,-40216.0,0.00039138,120]
[422161058,1778639453000,-410.04,0.00039234,2]
[422161049,1778639453000,-227.62219014,0.000392,30]
[422161047,1778639453000,-508.0,0.00039164,3]
[422161048,1778639453000,-1000.0,0.00039183,2]
[422161045,1778639453000,-384.85,0.00039105,120]
[422161044,1778639453000,-157.72297697,0.0003908,2]
[422161042,1778639453000,-384.85,0.00039005,120]
[422161051,1778639453000,-1816.15,0.00039208,120]
[422161131,1778639454000,-185.64001367,0.00039676,2]
[422161133,1778639454000,-408.76,0.00039681,2]
[422161130,1778639454000,-704.58,0.00039672,2]
[422161125,1778639454000,-410.04,0.00039631,30]
[422161123,1778639454000,-157.72297697,0.00039628,2]
[422161127,1778639454000,-155.74,0.00039637,7]
[422161124,1778639454000,-408.76,0.00039631,30]
[422161117,1778639454000,-408.76,0.00039581,7]
[422161132,1778639454000,-194.35090821,0.00039676,2]
[422161121,1778639454000,-704.58,0.00039622,30]
[422161126,1778639454000,-158.09,0.00039637,7]
[422161119,1778639454000,-384.85,0.00039605,120]
[422161138,1778639454000,-156.86423909,0.00039702,2]
[422161141,1778639454000,-187.35451657,0.00039702,2]
[422161134,1778639454000,-410.04,0.00039681,2]
[422161135,1778639454000,-158.09,0.00039697,30]
[422161136,1778639454000,-155.74,0.00039697,30]
[422161140,1778639454000,-152.24379671,0.00039702,2]
[422161139,1778639454000,-166.29791884,0.00039702,2]
[422161137,1778639454000,-151.62376104,0.00039701,2]
[422161154,1778639454000,-384.85,0.00039705,120]
[422161143,1778639454000,-154.06047337,0.00039702,2]
[422161144,1778639454000,-209.05739207,0.00039703,2]
[422161146,1778639454000,-167.65183106,0.00039703,2]
[422161122,1778639454000,-1000.0,0.00039628,10]
[422161145,1778639454000,-155.71807692,0.00039703,2]
[422161142,1778639454000,-193.13534143,0.00039702,2]
[422161120,1778639454000,-1401.68,0.00039622,30]
[422161102,1778639454000,-35701.60815525,0.0003949,2]